lending/lending_fUSD_20250621
["ID","MTS","AMOUNT","RATE_DAILY","PERIOD"]
[366878914,1750542632110,-631.32764213,0.00023072,8]
[366878915,1750542632120,-500.0,0.00023169,2]
[366878916,1750542632131,-202.0,0.00023211,4]
[366878918,1750542632141,-151.0,0.00023241,2]
[366878919,1750542632150,-254.42,0.00023242,2]
[366878921,1750542632160,-305.99,0.00023242,2]
[366878923,1750542632170,-246.77,0.00023242,2]
[366878925,1750542632182,-305.22,0.00023242,2]
[366878927,1750542632191,-249.07,0.00023242,2]
[366878930,1750542632201,-250.42,0.00023242,2]
[366878932,1750542632211,-249.94,0.00023242,2]
[366878934,1750542632221,-305.93,0.00023242,2]
[366878936,1750542632231,-246.54,0.00023242,2]
[366878938,1750542632241,-254.09,0.00023242,2]
[366878940,1750542632252,-305.48,0.00023242,2]
[366878942,1750542632262,-247.92,0.00023242,2]
[366878944,1750542632271,-254.06,0.00023242,2]
[366878946,1750542632281,-246.78,0.00023242,2]
[366878948,1750542632291,-631.32764213,0.00023245,8]
[366878971,1750542632507,-14962.62200554,0.00023255,2]
[366878974,1750542632520,-465.50982256,0.00023255,2]
[366878977,1750542632543,-1084.53575888,0.00023255,2]
[366878979,1750542632554,-4054.4312,0.00023255,2]
[366878981,1750542632574,-1000.999975,0.00023255,2]
[366878982,1750542632597,-2331.90123802,0.00023255,2]
[366878983,1750542632607,-300.0,0.00023288,2]
[366878984,1750542632617,-709.34,0.00023288,2]
[366878985,1750542632628,-151.0,0.00023298,2]
[366878986,1750542632638,-1957.856,0.00023298,2]
[366878987,1750542632647,-152.25590016,0.00023298,2]
[366878988,1750542632657,-151.0,0.00023298,2]
[366878989,1750542632667,-500.0,0.00023298,2]
[366878990,1750542632676,-500.0,0.00023298,2]
[366878991,1750542632686,-500.0,0.00023298,2]
[366878992,1750542632695,-500.0,0.00023298,2]
[366878993,1750542632705,-500.0,0.00023298,2]
[366878994,1750542632714,-500.0,0.00023298,2]
[366878995,1750542632724,-300.0,0.00023298,2]
[366878996,1750542632733,-151.0,0.00023298,2]
[366878997,1750542632744,-500.0,0.00023298,2]
[366878998,1750542632754,-300.0,0.00023298,2]
[366878999,1750542632764,-151.0,0.00023298,2]
[366879000,1750542632773,-500.0,0.00023298,2]
[366879001,1750542632783,-300.0,0.00023298,2]
[366879002,1750542632793,-151.0,0.00023298,2]
[366879003,1750542632803,-300.0,0.00023298,2]
[366879004,1750542632812,-93.64686182,0.00023298,2]
[366879005,1750542632824,-94.35313818,0.00023298,2]
[366879006,1750542632833,-500.0,0.00023298,2]
[366879007,1750542632843,-300.0,0.00023298,2]
[366879008,1750542632853,-500.0,0.00023298,2]
[366879009,1750542632863,-300.0,0.00023298,2]
[366879010,1750542632873,-337.04686182,0.00023298,2]
[366879032,1750542637547,-162.95313818,0.00023298,2]
[366879033,1750542637557,-300.0,0.00023298,2]
[366879034,1750542637566,-343.27868802,0.00023298,2]
[366879035,1750542637576,-300.0,0.00023298,2]
[366879036,1750542637585,-151.0,0.00023298,2]
[366879037,1750542637595,-300.0,0.00023298,2]
[366879038,1750542637604,-151.0,0.00023298,2]
[366879039,1750542637613,-300.0,0.00023298,2]
[366879040,1750542637623,-151.0,0.00023298,2]
[366879041,1750542637634,-300.0,0.00023298,2]
[366879042,1750542637643,-151.0,0.00023298,2]
[366879043,1750542637652,-300.0,0.00023298,2]
[366879044,1750542637662,-151.0,0.00023298,2]
[366879045,1750542637671,-300.0,0.00023298,2]
[366879046,1750542637680,-151.0,0.00023298,2]
[366879047,1750542637690,-300.0,0.00023298,2]
[366879048,1750542637699,-300.0,0.00023298,2]
[366879049,1750542637709,-151.0,0.00023298,2]
[366879050,1750542637718,-151.0,0.00023298,2]
[366879051,1750542637728,-151.0,0.00023298,2]
[366879052,1750542637737,-151.0,0.00023298,2]
[366879053,1750542637746,-668.65185757,0.00023298,2]
[366879054,1750542637756,-151.0,0.00023298,2]
[366879055,1750542637766,-207.4,0.00023298,2]
[366879056,1750542637775,-151.0,0.00023298,2]
[366879057,1750542637784,-151.0,0.00023298,2]
[366879058,1750542637794,-151.0,0.00023298,2]
[366879059,1750542637803,-151.0,0.00023298,2]
[366879060,1750542637813,-151.0,0.00023298,2]
[366879061,1750542637823,-151.0,0.00023298,2]
[366879062,1750542637834,-151.0,0.00023298,2]
[366879063,1750542637844,-151.0,0.00023298,2]
[366879064,1750542637855,-151.0,0.00023298,2]
[366879065,1750542637864,-151.0,0.00023298,2]
[366879066,1750542637873,-151.0,0.00023298,2]
[366879067,1750542637883,-151.0,0.00023298,2]
[366879069,1750542637892,-151.0,0.00023298,2]
[366879071,1750542637901,-151.0,0.00023298,2]
[366879073,1750542637910,-151.0,0.00023298,2]
[366879075,1750542637919,-151.0,0.00023298,2]
[366879077,1750542637929,-151.0,0.00023298,2]
[366879079,1750542637938,-151.0,0.00023298,2]
[366879081,1750542637948,-151.0,0.00023298,2]
[366879083,1750542637957,-151.0,0.00023298,2]
[366879085,1750542637967,-176.93407454,0.00023298,2]
[366879087,1750542637976,-150.0,0.00023298,2]
[366879089,1750542637985,-378.0,0.00023306,2]
[366879091,1750542637994,-375.17,0.0002331,2]
[366879093,1750542638003,-252.91,0.00023313,2]
[366879095,1750542638013,-150.0,0.00023325,2]
[366879097,1750542638022,-160.72,0.00023346,2]
[366879100,1750542638031,-2030.296672,0.00023353,2]
[366879102,1750542638040,-200.0,0.00023353,2]
[366879103,1750542638050,-301.71,0.00023384,2]
[366879105,1750542638059,-2105.41764886,0.00023408,2]
[366879106,1750542638069,-631.32764213,0.00023417,9]
[366879107,1750542638079,-887.65,0.00023432,2]
[366879108,1750542638088,-2183.31810187,0.00023463,2]
[366879109,1750542638097,-2264.10087164,0.00023518,2]
[366879110,1750542638106,-2060.519,0.00023562,10]
[366879111,1750542638116,-1303.71020402,0.00023573,2]
[366879112,1750542638124,-631.32764213,0.0002359,9]
[366879114,1750542638135,-2000.0,0.000236,2]
[366879116,1750542638144,-167.25,0.00023668,2]
[366879118,1750542638153,-150.0,0.00023668,2]
[366879119,1750542638163,-150.0,0.00023668,2]
[366879120,1750542638173,-150.0,0.00023668,2]
[366879122,1750542638186,-163.58,0.00023741,2]
[366879124,1750542638196,-163.58,0.00023743,2]
[366879126,1750542638205,-163.58,0.00023743,2]
[366879128,1750542638215,-631.32764213,0.00023762,9]
[366879130,1750542638226,-281.45,0.00023778,2]
[366879132,1750542638235,-150.0,0.00023806,2]
[366879134,1750542638245,-150.0,0.00023806,2]
[366879136,1750542638256,-617.5985,0.00023825,2]
[366879138,1750542638266,-264.73,0.00023836,2]
[366879140,1750542638276,-562.81098261,0.00023924,2]
[366879142,1750542638285,-946.0,0.00023926,2]
[366879144,1750542638295,-1979.42611845,0.00023926,2]
[366879150,1750542638344,-350.65307583,0.00023926,2]
[366879152,1750542638355,-838.21104,0.00023926,2]
[366879154,1750542638367,-166.70976572,0.00023926,2]
[366879156,1750542638376,-453.37527328,0.00023926,2]
[366879160,1750542638397,-349.62472672,0.00023926,2]
[366879162,1750542638407,-534.29382828,0.00023926,2]
[366879164,1750542638418,-103.70617172,0.00023926,2]
[366879166,1750542638428,-911.24382828,0.00023926,2]
[366879168,1750542638443,-1016.015,0.00023926,2]
[366879171,1750542638455,-77.74117172,0.00023926,2]
[366879173,1750542638465,-591.0,0.00023926,2]
[366879175,1750542638474,-559.0,0.00023926,2]
[366879177,1750542638484,-928.0,0.00023926,2]
[366879179,1750542638494,-1278.0,0.00023926,2]
[366879181,1750542638503,-1627.75882828,0.00023926,2]
[366879187,1750542638549,-48.24117172,0.00023926,2]
[366879189,1750542638558,-4095.0,0.00023926,2]
[366879191,1750542638567,-885.0,0.00023926,2]
[366879193,1750542638577,-156.0,0.00023926,2]
[366879195,1750542638587,-855.0,0.00023926,2]
[366879197,1750542638596,-631.32764213,0.00023934,10]
[366879199,1750542638605,-834.26476573,0.00023984,2]
[366879201,1750542638614,-798.09,0.00023998,2]
[366879203,1750542638623,-261.0,0.00024,7]
[366879205,1750542638633,-282.07,0.00024046,2]
[366879207,1750542638642,-631.32764213,0.00024107,10]
[366879209,1750542638652,-150.0,0.0002411,2]
[366879211,1750542638662,-150.0,0.0002411,2]
[366879213,1750542638671,-150.0,0.0002411,2]
[366879215,1750542638680,-142.78486261,0.0002411,2]
[366879217,1750542638692,-7.21513739,0.0002411,2]
[366879219,1750542638701,-1680.0,0.00024112,2]
[366879221,1750542638710,-150.0,0.00024137,2]
[366879223,1750542638720,-150.0,0.00024137,2]
[366879225,1750542638729,-842.06058,0.00024148,4]
[366879227,1750542638740,-1054.21369311,0.00024157,2]
[366879229,1750542638749,-1127.91462531,0.00024157,2]
[366879231,1750542638758,-200.0,0.00024165,2]
[366879233,1750542638767,-150.0,0.00024165,2]
[366879235,1750542638777,-150.0,0.00024192,2]
[366879237,1750542638787,-1000.0,0.000242,2]
[366879239,1750542638797,-152.23921771,0.0002422,2]
[366879241,1750542638806,-631.32764213,0.00024279,10]
[366879243,1750542638842,-168.0,0.00024305,2]
[366879245,1750542638852,-425.0353455,0.00024323,2]
[366879247,1750542638861,-420.0,0.00024329,2]
[366879249,1750542638870,-425.03534533,0.00024335,2]
[366879251,1750542638881,-425.03534533,0.00024347,2]
[366879253,1750542638891,-425.03534533,0.00024359,2]
[366879255,1750542638900,-425.03534533,0.00024371,2]
[366879257,1750542638910,-400.0,0.00024377,2]
[366879259,1750542638920,-425.03534533,0.00024383,2]
[366879261,1750542638929,-1425.99508,0.0002439,2]
[366879263,1750542638939,-425.03534533,0.00024395,2]
[366879265,1750542638948,-6833.36,0.000244,2]
[366879267,1750542638957,-8408.88060311,0.000244,2]
[366879269,1750542638966,-1072.7340155,0.000244,2]
[366879271,1750542638976,-150.0,0.000244,2]
[366879273,1750542638985,-300.0,0.000244,8]
[366879275,1750542638994,-425.03534533,0.00024407,2]
[366879277,1750542639004,-425.03534533,0.00024419,2]
[366879279,1750542639013,-150.0,0.0002442,2]
[366879281,1750542639023,-1000.0,0.00024421,2]
[366879283,1750542639032,-150.0,0.00024423,2]
[366879285,1750542639041,-425.03534533,0.00024431,2]
[366879287,1750542639050,-2500.0,0.00024433,2]
[366879289,1750542639059,-830.248,0.00024433,2]
[366879291,1750542639068,-2204.99458174,0.00024433,2]
[366879293,1750542639077,-1000.0,0.00024435,2]
[366879295,1750542639086,-425.03534533,0.00024442,2]
[366879297,1750542639095,-200.0,0.00024444,2]
[366879299,1750542639105,-2204.99458168,0.00024446,2]
[366879301,1750542639114,-631.32764213,0.00024452,11]
[366879303,1750542639124,-425.03534533,0.00024454,2]
[366879305,1750542639135,-2204.99458168,0.00024459,2]
[366879307,1750542639144,-150.0,0.00024461,2]
[366879309,1750542639154,-425.03534533,0.00024466,2]
[366879311,1750542639163,-150.0,0.00024471,2]
[366879313,1750542639174,-2204.99458168,0.00024472,2]
[366879315,1750542639187,-2204.99458168,0.00024485,2]
[366879316,1750542639197,-150.0,0.00024488,2]
[366879317,1750542639208,-2204.99458168,0.00024498,2]
[366879318,1750542639218,-700.0,0.000245,8]
[366879319,1750542639229,-2261.75,0.000245,2]
[366879320,1750542639238,-2204.99458168,0.00024511,2]
[366879321,1750542639248,-150.0,0.00024524,2]
[366879322,1750542639260,-2204.99458168,0.00024524,2]
[366879323,1750542639270,-202.0,0.00024525,6]
[366879324,1750542639280,-1000.0,0.00024527,2]
[366879325,1750542639289,-1451.0,0.00024531,2]
[366879326,1750542639299,-759.84166038,0.00024532,2]
[366879327,1750542639308,-1321.0822,0.00024533,2]
[366879328,1750542639318,-500.0,0.00024533,2]
[366879330,1750542639328,-36147.7929,0.00024533,2]
[366879331,1750542639337,-2544.539,0.00024533,2]
[366879332,1750542639347,-71452.36742133,0.00024533,2]
[366879334,1750542639360,-108843.62067867,0.00024533,2]
[366879335,1750542639370,-1500.0,0.00024533,2]
[366879336,1750542639379,-759.84166038,0.00024534,2]
[366879337,1750542639390,-514.8874933,0.00024534,2]
[366879338,1750542639399,-759.84166038,0.00024535,2]
[366879339,1750542639409,-759.84166038,0.00024537,2]
[366879340,1750542639419,-2204.99458168,0.00024537,2]
[366879341,1750542639429,-759.84166038,0.00024539,2]
[366879342,1750542639438,-500.0,0.00024539,2]
[366879343,1750542639448,-500.0,0.00024539,2]
[366879344,1750542639458,-500.0,0.00024539,2]
[366879345,1750542639468,-500.0,0.00024539,2]
[366879346,1750542639478,-500.0,0.00024539,2]
[366879347,1750542639488,-500.0,0.00024539,2]
[366879348,1750542639497,-500.0,0.00024539,2]
[366879349,1750542639507,-500.0,0.00024539,2]
[366879350,1750542639517,-500.0,0.00024539,2]
[366879351,1750542639528,-386.339,0.00024539,2]
[366879352,1750542639537,-500.0,0.00024539,2]
[366879353,1750542639547,-500.0,0.00024539,2]
[366879354,1750542639556,-500.0,0.00024539,2]
[366879355,1750542639566,-500.0,0.00024539,2]
[366879356,1750542639576,-503.12591566,0.00024539,2]
[366879357,1750542639585,-500.0,0.00024539,2]
[366879358,1750542639595,-500.0,0.00024539,2]
[366879359,1750542639605,-500.0,0.00024539,2]
[366879360,1750542639614,-572.32930832,0.00024539,2]
[366879361,1750542639624,-500.0,0.00024539,2]
[366879363,1750542639633,-500.0,0.00024539,2]
[366879364,1750542639643,-500.0,0.00024539,2]
[366879365,1750542639653,-500.0,0.00024539,2]
[366879367,1750542639662,-532.71503908,0.00024539,2]
[366879368,1750542639672,-500.0,0.00024539,2]
[366879371,1750542639682,-500.0,0.00024539,2]
[366879373,1750542639691,-500.0,0.00024539,2]
[366879374,1750542639700,-500.0,0.00024539,2]
[366879375,1750542639710,-499.0208676,0.00024539,2]
[366879376,1750542639720,-175.68441607,0.00024539,2]
[366879377,1750542639729,-500.0,0.00024539,2]
[366879378,1750542639739,-500.0,0.00024539,2]
[366879379,1750542639748,-500.0,0.00024539,2]
[366879380,1750542639758,-278.92079668,0.00024539,2]
[366879381,1750542639768,-500.0,0.00024539,2]
[366879382,1750542639778,-500.0,0.00024539,2]
[366879383,1750542639788,-500.0,0.00024539,2]
[366879384,1750542639797,-500.0,0.00024539,2]
[366879385,1750542639807,-274.49392523,0.00024539,2]
[366879386,1750542639817,-500.0,0.00024539,2]
[366879387,1750542639826,-500.0,0.00024539,2]
[366879388,1750542639836,-500.0,0.00024539,2]
[366879389,1750542639846,-500.0,0.00024539,2]
[366879390,1750542639856,-500.0,0.00024539,2]
[366879391,1750542639865,-500.0,0.00024539,2]
[366879392,1750542639874,-500.0,0.00024539,2]
[366879393,1750542639885,-500.0,0.00024539,2]
[366879394,1750542639895,-500.0,0.00024539,2]
[366879395,1750542639907,-500.0,0.00024539,2]
[366879396,1750542639917,-214.42198727,0.00024539,2]
[366879397,1750542639927,-500.0,0.00024539,2]
[366879398,1750542639937,-500.0,0.00024539,2]
[366879399,1750542639947,-500.0,0.00024539,2]
[366879400,1750542639956,-759.84166038,0.0002454,2]
[366879401,1750542639966,-759.84166038,0.00024542,2]
[366879402,1750542639976,-5000.0,0.0002455,2]
[366879403,1750542639986,-577.62347011,0.0002455,2]
[366879404,1750542639996,-2204.99458168,0.0002455,2]
[366879405,1750542640005,-3020.8072555,0.0002455,2]
[366879406,1750542640015,-536.558431,0.0002455,2]
[366879407,1750542640024,-157.24630606,0.0002455,2]
[366879408,1750542640034,-157.71812103,0.0002455,2]
[366879409,1750542640044,-3764.93485675,0.0002455,3]
[366879410,1750542640056,-225.39384325,0.0002455,3]
[366879411,1750542640066,-1000.0,0.00024559,2]
[366879412,1750542640076,-330.54,0.00024565,2]
[366879413,1750542640086,-163.58,0.00024565,2]
[366879414,1750542640096,-163.58,0.00024565,2]
[366879415,1750542640107,-327.16,0.00024565,2]
[366879416,1750542640123,-163.58,0.00024565,2]
[366879417,1750542640134,-160.19296095,0.00024573,2]
[366879418,1750542640143,-167.41450757,0.00024573,2]
[366879419,1750542640153,-500.0,0.00024573,2]
[366879420,1750542640164,-502.43757881,0.00024573,2]
[366879421,1750542640174,-500.0,0.00024573,2]
[366879422,1750542640189,-501.77898693,0.00024573,2]
[366879423,1750542640199,-500.0,0.00024573,2]
[366879424,1750542640208,-500.0,0.00024573,2]
[366879425,1750542640219,-513.74222926,0.00024573,2]
[366879426,1750542640230,-430.24369602,0.00024573,2]
[366879427,1750542640260,-69.75630398,0.00024573,2]
[366879428,1750542640270,-500.67141919,0.00024573,2]
[366879429,1750542640280,-500.79529275,0.00024573,2]
[366879430,1750542640289,-500.0,0.00024573,2]
[366879431,1750542640299,-501.36939316,0.00024573,2]
[366879432,1750542640309,-400.15042337,0.00024588,2]
[366879433,1750542640320,-1000.0,0.0002459,2]
[366879434,1750542640329,-150.0,0.00024597,2]
[366879435,1750542640339,-1044.05964791,0.000246,2]
[366879436,1750542640352,-2067.2786604,0.000246,2]
[366879437,1750542640377,-1464.45094684,0.000246,2]
[366879438,1750542640414,-2466.59771014,0.000246,2]
[366879439,1750542640425,-3110.01716113,0.000246,2]
[366879440,1750542640455,-2048.003565,0.000246,2]
[366879441,1750542640467,-1281.44631738,0.000246,2]
[366879442,1750542640479,-3176.28232342,0.000246,2]
[366879444,1750542640491,-4122.12614242,0.000246,2]
[366879447,1750542640517,-995.18563895,0.000246,2]
[366879451,1750542640537,-3273.51042387,0.000246,2]
[366879483,1750542642189,-372.34049029,0.00023926,2]
[366879484,1750542642201,-527.55520127,0.00023926,2]
[366879485,1750542642230,-3000.0,0.00023926,2]
[366879486,1750542642242,-300.00001,0.00023926,2]
[366879487,1750542642263,-2429.7456464,0.00023926,2]
[366879488,1750542642275,-505.35865204,0.00023926,2]
[366879489,1750542642286,-196.71634796,0.000246,2]
[366879490,1750542642302,-1997.58231608,0.000246,2]
[366879491,1750542642314,-274.32144927,0.000246,2]
[366879492,1750542642325,-1580.0000001,0.000246,2]
[366879493,1750542642337,-10124.87028979,0.000246,2]
[366879495,1750542642349,-19811.21056634,0.000246,2]
[366879499,1750542642478,-3543.86015885,0.000246,2]
[366879501,1750542642488,-1000.0,0.000246,8]
[366879502,1750542642497,-523.63984115,0.00024602,2]
[366879507,1750542642562,-476.36015885,0.00024602,2]
[366879508,1750542642572,-150.0,0.0002462,2]
[366879510,1750542642582,-127.95423635,0.00024623,2]
[366879511,1750542642594,-22.04576365,0.00024623,2]
[366879513,1750542642605,-714.33,0.00024623,2]
[366879514,1750542642615,-180.38371135,0.00024623,2]
[366879516,1750542642625,-631.32764213,0.00024624,11]
[366879518,1750542642635,-6636.5995445,0.00024633,2]
[366879519,1750542642646,-635.4675855,0.00024633,2]
[366879521,1750542642656,-3981.6950876,0.00024633,2]
[366879522,1750542642665,-117056.0255957,0.00024633,2]
[366879524,1750542642675,-151.14,0.0002464,2]
[366879526,1750542642685,-151.14,0.0002464,2]
[366879527,1750542642695,-151.14,0.0002464,2]
[366879529,1750542642704,-151.14,0.0002464,2]
[366879530,1750542642714,-151.14,0.0002464,2]
[366879532,1750542642723,-151.14,0.0002464,2]
[366879533,1750542642732,-151.14,0.0002464,2]
[366879534,1750542642741,-151.14,0.0002464,2]
[366879535,1750542642751,-196.77299689,0.0002464,2]
[366879536,1750542642760,-151.14,0.0002464,2]
[366879537,1750542642769,-151.14,0.0002464,2]
[366879539,1750542642779,-151.14,0.0002464,2]
[366879541,1750542642788,-151.14,0.0002464,2]
[366879543,1750542642798,-151.14,0.0002464,2]
[366879544,1750542642807,-151.14,0.0002464,2]
[366879546,1750542642816,-151.14,0.0002464,2]
[366879547,1750542642825,-668.70809727,0.00024641,2]
[366879549,1750542642834,-151.0,0.00024641,2]
[366879551,1750542642842,-52691.74391748,0.00024642,3]
[366879553,1750542642854,-96802.26443584,0.00024642,3]
[366879555,1750542642865,-114480.36000098,0.00024642,3]
[366879557,1750542642877,-40110.5,0.00024642,3]
[366879559,1750542642888,-33307.59715002,0.00024642,3]
[366879561,1750542642899,-5077.2039189,0.00024642,3]
[366879563,1750542642915,-39660.02672265,0.00024642,3]
[366879565,1750542642927,-506.36847035,0.00024642,3]
[366879567,1750542642939,-487.52557497,0.00024642,3]
[366879570,1750542642954,-141929.78247749,0.00024642,3]
[366879572,1750542642966,-12442.67725149,0.00024642,3]
[366879574,1750542642978,-386.0,0.00024642,3]
[366879576,1750542642991,-2537.5,0.00024642,3]
[366879596,1750542643740,-687.33,0.00022761,2]
[366879597,1750542643752,-3045.11161068,0.00022761,2]
[366879598,1750542643763,-2436.50395426,0.00022761,2]
[366879599,1750542643774,-1403.1232558,0.00022761,2]
[366879601,1750542643807,-3107.24175447,0.00022761,2]
[366879602,1750542643816,-425.03534533,0.00024478,2]
[366879603,1750542643825,-2711.28102207,0.00024642,3]
[366879604,1750542643837,-10887.732,0.00024642,3]
[366879605,1750542643855,-306.58638628,0.00024642,3]
[366879606,1750542643890,-101879.99999999,0.00024642,3]
[366879607,1750542643901,-254.71326915,0.00024642,3]
[366879608,1750542643912,-8978.13104377,0.00024642,3]
[366879609,1750542643927,-44196.15762247,0.00024642,3]
[366879610,1750542643947,-2308.64120537,0.00024642,3]
[366879611,1750542643966,-610.02985522,0.00024642,3]
[366879620,1750542645739,-433.97561987,0.00024642,3]
[366879621,1750542645750,-2072.23760189,0.00024642,3]
[366879622,1750542645762,-10028.23062034,0.00024642,3]
[366879623,1750542645777,-502.66873175,0.00024642,3]
[366879624,1750542645788,-5944.14281323,0.00024642,3]
[366879625,1750542645800,-17176.5752819,0.00024642,3]
[366879626,1750542645969,-1650.00002,0.00024642,3]
[366879627,1750542646027,-2218.431861,0.00024642,3]
[366879628,1750542646038,-997.48,0.00024642,3]
[366879668,1750543093906,202.0,0.00019897,2]
[366879669,1750543490322,1080.0,0.00019627,2]
[366879670,1750543494528,1080.0,0.00018646,2]
[366879671,1750543499026,430.0796341,0.00017713,2]
[366879761,1750543619943,157.39,0.00013699,2]
[366879826,1750543761106,300.0,0.000244,120]
[366879827,1750543812008,202.0,0.00019233,2]
[366879841,1750543831849,-202.0,0.00020639,4]
[366879842,1750543831860,-1080.0,0.0002066,2]
[366879843,1750543831871,-160.72,0.00021397,2]
[366879844,1750543831882,-250.0,0.00021397,2]
[366879845,1750543831892,-157.39,0.00021404,2]
[366879846,1750543831902,-500.0,0.00021407,2]
[366879847,1750543831913,-303.39,0.00021407,2]
[366879848,1750543831923,-300.28,0.0002141,2]
[366879849,1750543831934,-301.2,0.0002141,2]
[366879850,1750543831945,-304.07,0.00021435,2]
[366879851,1750543831957,-1337.77,0.00021451,2]
[366879852,1750543831968,-666.0,0.00021456,2]
[366879853,1750543831978,-305.43,0.00021464,2]
[366879854,1750543831989,-1080.0,0.00021693,2]
[366879855,1750543831999,-1200.0,0.00021899,2]
[366879856,1750543832009,-446.56718725,0.000219,6]
[366879857,1750543832020,-928.0,0.00021902,2]
[366879858,1750543832031,-975.0,0.00021902,2]
[366879859,1750543832040,-250.99,0.00021917,2]
[366879860,1750543832050,-252.34,0.00021917,2]
[366879861,1750543832060,-246.16,0.00021918,2]
[366879862,1750543832070,-248.01,0.00021918,2]
[366879863,1750543832080,-303.61,0.00021919,2]
[366879864,1750543832090,-256.0,0.00021925,2]
[366879865,1750543832101,-300.0,0.00021926,2]
[366879866,1750543832111,-300.0,0.00021927,2]
[366879867,1750543832121,-500.0,0.00021927,2]
[366879868,1750543832131,-303.51,0.00021937,2]
[366879869,1750543832142,-245.18,0.00021947,2]
[366879870,1750543832152,-303.76,0.00021957,2]
[366879871,1750543832162,-452.02605196,0.00021983,2]
[366879872,1750543832172,-222.50306,0.00022,30]
[366879873,1750543832182,-202.0,0.00022045,6]
[366879874,1750543832193,-300.0,0.00022068,2]
[366879875,1750543832203,-245.11,0.00022068,2]
[366879876,1750543832214,-250.67,0.00022068,2]
[366879877,1750543832223,-252.15,0.00022068,2]
[366879878,1750543832233,-250.99,0.00022068,2]
[366879879,1750543832243,-446.56718696,0.00022107,6]
[366879880,1750543832253,-150.0,0.00022167,2]
[366879881,1750543832262,-150.0,0.00022167,2]
[366879882,1750543832272,-150.0,0.00022167,2]
[366879883,1750543832282,-150.0,0.00022167,2]
[366879884,1750543832292,-150.0,0.00022167,2]
[366879885,1750543832302,-150.0,0.00022167,2]
[366879886,1750543832312,-150.0,0.00022167,2]
[366879887,1750543832322,-150.0,0.00022167,2]
[366879888,1750543832332,-150.0,0.00022167,2]
[366879889,1750543832342,-150.0,0.00022167,2]
[366879890,1750543832352,-150.0,0.00022167,2]
[366879891,1750543832361,-150.0,0.00022167,2]
[366879892,1750543832372,-150.0,0.00022167,2]
[366879893,1750543832382,-150.0,0.00022207,4]
[366879894,1750543832393,-150.0,0.00022209,4]
[366879895,1750543832402,-150.0,0.0002223,4]
[366879896,1750543832412,-150.0,0.00022236,4]
[366879897,1750543832423,-304.69,0.0002224,2]
[366879898,1750543832433,-150.0,0.00022247,4]
[366879899,1750543832443,-150.0,0.00022251,4]
[366879900,1750543832455,-250.0,0.00022257,2]
[366879901,1750543832465,-250.0,0.00022257,2]
[366879903,1750543832474,-150.0,0.00022286,4]
[366879905,1750543832484,-150.0,0.0002229,4]
[366879907,1750543832494,-500.0,0.00022292,2]
[366879909,1750543832504,-150.0,0.00022292,4]
[366879911,1750543832514,-150.0,0.00022293,4]
[366879913,1750543832524,-150.0,0.00022304,4]
[366879915,1750543832533,-446.56718696,0.00022314,7]
[366879917,1750543832543,-150.0,0.00022326,4]
[366879919,1750543832554,-150.0,0.00022334,4]
[366879921,1750543832563,-150.0,0.00022343,4]
[366879923,1750543832573,-150.0,0.00022357,4]
[366879925,1750543832583,-150.0,0.00022357,4]
[366879927,1750543832593,-150.0,0.00022366,4]
[366879929,1750543832605,-150.0,0.00022372,4]
[366879931,1750543832614,-150.0,0.00022376,4]
[366879933,1750543832624,-150.0,0.00022405,4]